bitfinex-derivatives/quotes_SOLF0:USTF0_20250419
["timestamp","ask_amount","ask_price","bid_price","bid_amount"]
[1745091558900,596.8,138.69,138.65,8.95406006]
[1745091559197,7.2129,138.67,138.65,8.95406006]
[1745091559503,7.2129,138.67,138.63,8.95406006]
[1745091559902,7.2129,138.67,138.64,7.2141]
[1745091560599,8.95406006,138.66,138.62,7.2148]
[1745091560800,34.43406006,138.66,138.62,7.2148]
[1745091561000,8.95406006,138.64,138.59,8.95406006]
[1745091561201,7.215,138.63,138.6,7.2159]
[1745091561399,32.695,138.63,138.6,7.2159]
[1745091565206,7.2152,138.62,138.6,7.2159]
[1745091565902,7.2152,138.62,138.59,7.2166]
[1745091568609,7.2159,138.61,138.58,7.2171]
[1745091569506,7.2159,138.61,138.59,7.2167]
[1745091571002,7.2163,138.6,138.57,7.2175]
[1745091571209,34.43406006,138.6,138.54,34.43406006]
[1745091571710,7.2171,138.59,138.56,7.218]
[1745091572410,5.11987663,138.58,138.56,7.218]
[1745091572707,5.11987663,138.57,138.56,7.218]
[1745091572913,5.11987663,138.57,138.56,16.17206006]
[1745091577713,25.48,138.63,138.6,7.2161]
[1745091577913,5.11886419,138.62,138.6,7.2161]
[1745091578116,32.695,138.63,138.6,7.2161]
[1745091578316,25.48,138.63,138.6,7.2161]
[1745091579316,7.2152,138.62,138.6,7.2161]
[1745091580417,32.695,138.63,138.6,7.2161]
[1745091589822,4.98963649,138.62,138.6,7.2161]
[1745091590023,4.98963649,138.61,138.6,7.2161]
[1745091591827,4.98974049,138.61,138.6,7.2161]
[1745091601633,1.92114049,138.61,138.6,7.2161]
[1745091602535,25.46,138.66,138.64,7.2139]
[1745091602931,25.46,138.66,138.63,8.95406006]
[1745091603433,25.46,138.66,138.65,8.95406006]
[1745091603632,7.2123,138.68,138.65,8.95406006]
[1745091603829,596.78,138.69,138.65,8.95406006]
[1745091604132,25.46,138.69,138.67,8.95406006]
[1745091604536,25.46,138.69,138.67,7.2124]
[1745091609839,32.6716,138.69,138.66,7.213]
[1745091610239,32.6716,138.69,138.65,8.95406006]
[1745091610440,25.46,138.69,138.65,8.95406006]
[1745091610641,7.2122,138.68,138.65,16.16736006]
[1745091610940,25.46,138.69,138.65,16.16736006]
[1745091612344,7.2121,138.68,138.65,16.16736006]
[1745091612842,32.6718,138.69,138.66,7.2131]
[1745091613342,25.46,138.69,138.67,7.2123]
[1745091613544,4.57666964,138.68,138.67,7.2123]
[1745091614136,4.57666964,138.68,138.66,7.2129]
[1745091614340,4.57666964,138.67,138.66,7.2129]
[1745091616945,4.57354821,138.67,138.66,7.2129]
[1745091617449,4.57336926,138.67,138.66,7.2129]
[1745091618441,7.2121,138.68,138.66,7.2129]
[1745091618949,4.57369284,138.67,138.66,7.2129]
[1745091619148,7.2121,138.68,138.66,7.2129]
[1745091619344,4.57369965,138.67,138.66,7.2129]
[1745091619551,7.2121,138.68,138.66,7.2129]
[1745091620050,4.57393988,138.67,138.66,7.2129]
[1745091620348,4.5739389,138.67,138.66,7.2129]
[1745091621050,7.2121,138.68,138.66,7.2129]
[1745091621350,4.57394529,138.67,138.66,7.2129]
[1745091621549,4.57351013,138.67,138.66,7.2129]
[1745091622451,4.57351013,138.67,138.63,8.95406006]
[1745091622647,4.57431905,138.66,138.63,8.95406006]
[1745091622851,4.57431905,138.65,138.63,8.95406006]
[1745091623051,8.95406006,138.67,138.63,8.95406006]
[1745091623351,4.57449845,138.66,138.63,8.95406006]
[1745091623550,4.57449845,138.65,138.63,8.95406006]
[1745091623752,4.57449845,138.64,138.63,16.16856006]
[1745091624053,4.57449845,138.64,138.61,8.95406006]
[1745091624247,7.2145,138.64,138.61,16.16956006]
[1745091625354,7.2145,138.64,138.62,7.2152]
[1745091625853,7.2139,138.65,138.62,7.2152]
[1745091626052,4.57457387,138.64,138.62,7.2152]
[1745091626253,7.2139,138.65,138.62,7.2152]
[1745091626552,4.57458974,138.64,138.62,7.2152]
[1745091626755,7.2139,138.65,138.62,7.2152]
[1745091626954,4.57482512,138.64,138.63,16.16876006]
[1745091627150,4.57482512,138.64,138.63,7.2147]
[1745091627350,4.5750454,138.64,138.63,16.16876006]
[1745091630854,32.6734,138.66,138.63,16.16876006]
[1745091631052,4.57737003,138.65,138.63,16.16876006]
[1745091631353,4.57737003,138.64,138.63,16.16876006]
[1745091638063,4.58073936,138.64,138.63,16.16876006]
[1745091639861,4.58204047,138.64,138.63,16.16876006]
[1745091641668,4.58361751,138.64,138.63,16.16876006]
[1745091655382,25.46,138.66,138.65,7.2137]
[1745091655681,30.04955692,138.66,138.65,7.2137]
[1745091657885,30.04956384,138.66,138.65,7.2137]
[1745091663691,30.04956384,138.66,138.63,8.95406006]
[1745091663888,4.58956384,138.65,138.59,8.95406006]
[1745091664189,7.215,138.63,138.6,7.216]
[1745091664391,4.58956384,138.62,138.58,25.46]
[1745091664583,4.58956384,138.61,138.58,25.46]
[1745091664782,4.58956384,138.6,138.57,17.5062837]
[1745091664981,7.2155,138.62,138.59,7.2165]
[1745091665181,4.59145498,138.61,138.59,7.2165]
[1745091665383,4.59145498,138.6,138.59,7.2165]
[1745091666493,4.59145498,138.6,138.59,16.17056006]
[1745091670494,32.6749,138.63,138.6,7.2158]
[1745091670689,4.58839298,138.62,138.59,8.95406006]
[1745091670992,4.58839298,138.61,138.59,8.95406006]
[1745091671193,25.46,138.63,138.59,8.95406006]
[1745091671390,4.58865565,138.62,138.59,8.95406006]
[1745091671688,4.58865565,138.61,138.59,8.95406006]
[1745091671889,4.58865565,138.6,138.59,16.17086006]
[1745091673396,32.6747,138.63,138.61,7.2156]
[1745091673596,4.5878134,138.62,138.61,7.2156]
[1745091674093,4.58777406,138.62,138.61,7.2156]
[1745091675898,4.58694291,138.62,138.61,7.2156]
[1745091679001,4.58694291,138.62,138.61,16.16966006]
[1745091679999,32.6729,138.67,138.64,7.214]
[1745091680298,11.79992361,138.66,138.63,8.95406006]
[1745091680499,4.58672361,138.65,138.63,8.95406006]
[1745091680700,4.58672361,138.64,138.63,8.95406006]
[1745091681401,4.58672361,138.64,138.63,16.16856006]
[1745091684502,4.58703128,138.64,138.63,16.16856006]
[1745091687205,1.981,138.69,138.63,8.95406006]
[1745091687406,25.46,138.7,138.67,8.95406006]
[1745091687606,25.46,138.7,138.68,8.95406006]
[1745091688109,36.3937,138.73,138.68,8.95406006]
[1745091688508,25.46,138.73,138.71,7.2103]
[1745091689109,25.46,138.73,138.72,7.21]
[1745091690411,25.46,138.73,138.71,7.2103]
[1745091692214,32.6695,138.73,138.7,8.95406006]
[1745091693109,32.6695,138.73,138.69,16.16516006]
[1745091693509,7.21,138.72,138.69,16.16516006]
[1745091693911,7.21,138.72,138.69,7.2111]
[1745091694110,16.16406006,138.72,138.69,7.2111]
[1745091694314,18.06426006,138.72,138.69,7.2111]
[1745091696515,25.46,138.73,138.69,8.95406006]
[1745091697114,25.46,138.73,138.71,7.2104]
[1745091708227,25.46,138.73,138.72,7.21]
[1745091710524,25.46,138.73,138.71,16.16436006]
[1745091710725,25.46,138.73,138.69,8.95406006]
[1745091711025,32.6697,138.73,138.7,7.2107]
[1745091712834,7.21,138.72,138.7,7.2107]
[1745091713333,32.6698,138.73,138.7,7.2107]
[1745091719334,32.6698,138.73,138.71,7.2104]
[1745091719935,25.46,138.73,138.71,16.16446006]
[1745091721132,25.46,138.73,138.72,7.21]
[1745091730343,36.511,138.76,138.73,7.209]
[1745091734547,7.2085,138.75,138.73,7.209]
[1745091737746,7.2085,138.75,138.72,7.2098]
[1745091739049,36.511,138.76,138.72,7.2098]
[1745091739248,29.3028,138.76,138.73,7.209]
[1745091739749,36.511,138.76,138.73,7.209]
[1745091740345,11.071,138.76,138.73,7.209]
[1745091740648,32.6482,138.76,138.73,7.209]
[1745091740951,7.2085,138.75,138.73,7.209]
[1745091742152,7.2085,138.75,138.72,7.2097]
[1745091742753,7.209,138.74,138.71,7.2103]
[1745091742952,25.44,138.76,138.7,8.95406006]
[1745091743253,32.6483,138.76,138.72,7.2097]
[1745091745460,7.2086,138.75,138.72,7.2097]
[1745091748855,32.6481,138.76,138.73,7.2095]
[1745091749055,25.44,138.76,138.7,8.95406006]
[1745091749252,8.95406006,138.75,138.7,8.95406006]
[1745091750255,7.209,138.74,138.71,7.2102]
[1745091751455,7.209,138.74,138.72,7.21]
[1745091752759,7.209,138.74,138.71,7.2103]
[1745091753759,16.16276006,138.75,138.72,7.2099]
[1745091754259,7.2087,138.75,138.72,7.2099]
[1745091754961,32.6482,138.76,138.7,8.95406006]
[1745091755560,32.6482,138.76,138.73,7.2094]
[1745091756558,7.2085,138.75,138.73,7.2094]
[1745091760264,7.2085,138.75,138.72,7.2097]
[1745091768871,32.6481,138.76,138.73,7.2094]
[1745091769963,7.2085,138.75,138.73,7.2094]
[1745091770569,7.2085,138.75,138.72,16.16386006]
[1745091771574,7.2085,138.75,138.73,7.2095]
[1745091777079,7.2085,138.75,138.72,16.16386006]
[1745091779878,7.2085,138.75,138.73,7.2094]
[1745091780076,32.6482,138.76,138.73,7.2094]
[1745091780277,25.44,138.76,138.73,7.2094]
[1745091781279,7.2085,138.75,138.73,7.2094]
[1745091785482,7.2085,138.75,138.72,16.16376006]
[1745091786584,7.2085,138.75,138.72,7.2097]
[1745091787881,25.44,138.76,138.71,7.2103]
[1745091788187,8.95406006,138.75,138.68,25.42]
[1745091788484,7.2097,138.73,138.7,7.2108]
[1745091788686,32.6297,138.73,138.7,7.2108]
[1745091789086,7.2102,138.72,138.69,16.16546006]
[1745091790989,7.2102,138.72,138.7,7.211]
[1745091791287,32.6297,138.73,138.7,7.211]
[1745091794692,3.9689,138.76,138.72,7.21]
[1745091794889,25.42,138.75,138.73,8.95406006]
[1745091795187,25.42,138.75,138.72,7.21]
[1745091796292,32.6287,138.75,138.72,7.21]
[1745091802886,32.6287,138.75,138.71,16.16436006]
[1745091803392,7.209,138.74,138.71,16.16436006]
[1745091806194,7.21,138.72,138.69,16.16526006]
[1745091807201,7.21,138.72,138.7,7.211]
[1745091812805,7.2097,138.73,138.7,7.211]
[1745091817409,7.2097,138.73,138.71,7.2104]
[1745091818211,7.2092,138.74,138.71,7.2104]
[1745091819511,7.2092,138.74,138.72,7.21]
[1745091820314,7.2092,138.74,138.71,7.2103]
[1745091830122,8.95406006,138.72,138.67,8.95406006]
[1745091830424,25.42,138.71,138.66,8.95406006]
[1745091830627,32.6308,138.71,138.68,7.2119]
[1745091830923,32.6308,138.71,138.68,8.95406006]
[1745091831326,32.6308,138.71,138.68,16.16566006]
[1745091831623,7.2111,138.7,138.68,16.16566006]
[1745091834224,32.6308,138.71,138.68,16.16566006]
[1745091836628,32.6308,138.71,138.69,7.2115]
[1745091837527,25.42,138.71,138.69,7.2115]
[1745091844830,7.2098,138.73,138.7,7.2111]
[1745091845034,7.2098,138.73,138.7,8.95406006]
[1745091846235,7.2098,138.73,138.71,7.2102]
[1745091846731,572.7624,138.77,138.73,7.2092]
[1745091846931,25.42,138.75,138.73,7.2092]
[1745091847132,32.6289,138.75,138.72,8.95406006]
[1745091847334,25.42,138.75,138.72,8.95406006]
[1745091848036,25.42,138.75,138.73,7.2095]
[1745091848237,25.42,138.75,138.72,8.95406006]
[1745091848637,25.42,138.75,138.72,16.16386006]
[1745091851139,32.6285,138.75,138.72,16.16386006]
[1745091851738,25.42,138.75,138.73,7.2092]
[1745091853840,25.42,138.75,138.74,7.209]
[1745091858047,25.42,138.75,138.73,7.2093]
[1745091860051,25.42,138.75,138.74,7.209]
[1745091863048,25.42,138.75,138.73,7.2092]
[1745091863247,25.42,138.75,138.72,8.95406006]
[1745091863548,25.42,138.75,138.73,7.2095]
[1745091864149,25.42,138.75,138.72,16.16376006]
[1745091866847,32.6285,138.75,138.72,16.16376006]
[1745091871050,7.2085,138.75,138.73,7.2095]
[1745091872455,7.2082,138.76,138.73,7.2095]
[1745091873857,25.4,138.77,138.72,16.16386006]
[1745091874056,34.35406006,138.77,138.72,8.95406006]
[1745091874557,7.2092,138.74,138.72,8.95406006]
[1745091876657,7.2092,138.74,138.72,16.16396006]
[1745091878868,7.2092,138.74,138.72,8.95406006]
[1745091879667,7.2095,138.73,138.72,8.95406006]
[1745091882870,7.2092,138.74,138.72,8.95406006]
[1745091885972,7.2092,138.74,138.72,16.16396006]
[1745091888874,25.4,138.76,138.73,7.2091]
[1745091889376,32.6082,138.76,138.73,7.2091]
[1745091892378,7.2085,138.75,138.73,7.2091]
[1745091892678,7.2085,138.75,138.72,16.16386006]
[1745091893179,25.4,138.76,138.72,8.95406006]
[1745091893374,8.95406006,138.75,138.69,8.95406006]
[1745091893578,8.95406006,138.73,138.66,34.35406006]
[1745091893877,7.2111,138.7,138.67,7.2124]
[1745091904291,7.2116,138.69,138.67,7.2124]
[1745091906590,7.2113,138.7,138.68,7.212]
[1745091907587,41.56486006,138.71,138.68,7.212]
[1745091907793,25.4,138.71,138.69,7.2115]
[1745091909295,32.6106,138.71,138.69,7.2115]
[1745091911296,25.4,138.71,138.69,7.2115]
[1745091920302,32.6106,138.71,138.69,7.2115]
[1745091923605,25.4,138.71,138.68,8.95406006]
[1745091923802,25.4,138.71,138.66,8.95406006]
[1745091924103,7.2113,138.7,138.67,7.2123]
[1745091925006,7.2113,138.7,138.68,7.2119]
[1745091932413,590.5247454,138.78,138.68,8.95406006]
[1745091932611,34.35406006,138.77,138.69,8.95406006]
[1745091932910,8.95406006,138.75,138.69,8.95406006]
[1745091933113,7.2098,138.73,138.7,7.2109]
[1745091933707,25.4,138.74,138.69,16.16556006]
[1745091933913,8.95406006,138.73,138.69,7.2115]
[1745091934213,7.2105,138.72,138.69,7.2115]
[1745091934512,8.95406006,138.73,138.67,8.95406006]
[1745091934513,8.95406006,138.73,138.68,7.2118]
[1745091934713,8.95406006,138.71,138.68,7.2118]
[1745091935012,34.35406006,138.71,138.68,7.2118]
[1745091935713,41.56486006,138.71,138.68,7.2118]
[1745091936918,7.2111,138.7,138.68,7.2118]
[1745091938916,7.2119,138.69,138.65,8.95406006]
[1745091939114,8.95406006,138.69,138.63,34.35406006]
[1745091940315,7.2125,138.68,138.65,7.2134]
[1745091940815,8.95406006,138.69,138.64,7.2142]
[1745091941217,25.4,138.68,138.64,7.2142]
[1745091941618,8.95406006,138.67,138.64,7.2142]
[1745091942640,8.95406006,138.67,138.61,8.95406006]
[1745091942924,25.4,138.68,138.61,8.95406006]
[1745091942925,8.95406006,138.65,138.61,8.95406006]
[1745091943127,7.2145,138.64,138.61,8.95406006]
[1745091943327,34.35406006,138.65,138.61,7.2154]
[1745091944224,7.2148,138.63,138.61,7.2154]
[1745091944426,7.2148,138.63,138.6,7.216]
[1745091946729,7.2148,138.63,138.61,7.2156]
[1745091947335,7.2144,138.64,138.61,7.2156]
[1745091952233,7.2144,138.64,138.59,12.84466006]
[1745091953233,7.2144,138.64,138.61,7.2152]
[1745091956134,7.2144,138.64,138.62,7.2152]
[1745091960133,34.35406006,138.65,138.63,7.2146]
[1745091960338,34.35406006,138.65,138.63,16.16866006]
[1745091960339,25.4,138.65,138.63,16.16866006]
[1745091961043,25.4,138.65,138.62,7.2149]
[1745091961238,32.6139,138.65,138.62,7.2149]
[1745091963242,32.6139,138.65,138.63,7.2146]
[1745091964742,25.4,138.65,138.63,7.2146]
[1745091964941,571.16,138.7,138.63,7.2146]
[1745091964942,34.35406006,138.68,138.63,8.95406006]
[1745091965142,25.4,138.68,138.65,8.95406006]
[1745091965939,32.6121,138.68,138.66,7.213]
[1745091967245,25.4,138.68,138.66,7.213]
[1745091972754,32.6122,138.68,138.66,7.213]
[1745091974151,25.4,138.68,138.66,7.213]
[1745091975950,25.4,138.68,138.65,7.2134]
[1745091976252,25.4,138.68,138.63,8.95406006]
[1745091976453,7.2127,138.67,138.63,8.95406006]
[1745091976653,7.2127,138.67,138.64,7.2137]
[1745091977351,32.6124,138.68,138.65,7.2135]
[1745091979154,32.6124,138.68,138.66,7.2131]
[1745091981957,25.4,138.68,138.66,7.2131]
[1745091983458,32.6121,138.68,138.66,7.2131]
[1745091985860,32.6121,138.68,138.65,7.2134]
[1745091987157,7.2126,138.67,138.65,7.2134]
[1745091989055,7.2132,138.66,138.63,8.9411454]
[1745091989358,34.3411454,138.68,138.61,8.9411454]
[1745091989559,7.2135,138.66,138.63,7.2145]
[1745091993162,7.2135,138.66,138.64,7.2141]
[1745091996065,7.2135,138.66,138.63,7.2144]
[1745091997564,7.2135,138.66,138.63,16.1555454]
[1745091997760,7.2135,138.66,138.64,7.2142]
[1745092002974,7.2129,138.67,138.64,7.2142]
[1745092004577,25.38,138.7,138.65,8.9411454]
[1745092005078,7.2118,138.69,138.66,7.2127]
[1745092005376,25.38,138.7,138.67,8.9411454]
[1745092005570,25.38,138.7,138.68,7.2118]
[1745092005772,25.38,138.7,138.67,8.9411454]
[1745092005974,25.38,138.7,138.69,8.9411454]
[1745092006174,25.38,138.73,138.69,8.9411454]
[1745092006479,25.38,138.73,138.71,8.9411454]
[1745092006875,25.38,138.73,138.71,16.1512454]
[1745092007280,7.2093,138.74,138.71,16.1512454]
[1745092010782,7.2095,138.73,138.71,8.9411454]
[1745092012079,580.0611454,138.75,138.69,8.9411454]
[1745092012283,34.3211454,138.73,138.69,8.9411454]
[1745092012680,34.3211454,138.73,138.68,8.9411454]
[1745092012982,34.3211454,138.73,138.67,8.9411454]
[1745092013883,7.2106,138.71,138.68,7.2119]
[1745092015085,34.3211454,138.73,138.67,8.9411454]
[1745092015989,7.2101,138.72,138.69,7.2112]
[1745092016389,7.2101,138.72,138.67,8.9411454]
[1745092017291,7.2101,138.72,138.7,7.211]
[1745092019290,7.2101,138.72,138.69,7.2113]
[1745092026095,7.2106,138.71,138.69,7.2113]
[1745092026395,34.3211454,138.73,138.67,8.9411454]
[1745092026896,7.2112,138.7,138.67,16.1534454]
[1745092028596,7.2112,138.7,138.68,7.2121]
[1745092029997,7.2103,138.72,138.69,7.2116]
[1745092030196,596.5,138.75,138.71,8.9411454]
[1745092030495,32.5885,138.75,138.71,16.1514454]
[1745092030692,25.38,138.75,138.71,8.9411454]
[1745092031092,7.2094,138.74,138.71,8.9411454]
[1745092031397,25.38,138.75,138.71,8.9411454]
[1745092031599,32.5888,138.75,138.72,7.21]
[1745092031800,25.38,138.75,138.71,8.9411454]
[1745092032296,25.38,138.75,138.73,7.2092]
[1745092036997,32.5888,138.75,138.72,7.2098]
[1745092037197,34.3211454,138.75,138.69,34.3211454]
[1745092037601,7.2098,138.73,138.7,7.2108]
[1745092039805,7.2098,138.73,138.71,7.2105]
[1745092040906,7.2092,138.74,138.71,7.2105]
[1745092041507,7.2095,138.73,138.71,7.2105]
[1745092041908,34.3211454,138.75,138.71,7.2105]
[1745092043003,7.2093,138.74,138.71,7.2105]
[1745092052717,7.2096,138.73,138.7,7.2108]
[1745092055327,7.2096,138.73,138.71,7.2105]
[1745092058024,34.3211454,138.75,138.71,7.2105]
[1745092058229,7.2092,138.74,138.72,7.2099]
[1745092059825,25.38,138.75,138.73,7.2095]
[1745092060128,570.86,138.79,138.73,8.9411454]
[1745092060129,25.36,138.78,138.73,8.9411454]
[1745092060429,32.5673,138.78,138.75,7.2082]
[1745092060628,25.36,138.78,138.75,7.2082]
[1745092062231,7.2074,138.77,138.75,7.2082]
[1745092062735,25.36,138.78,138.75,7.2082]
[1745092063233,32.5672,138.78,138.75,7.2082]
[1745092063531,25.36,138.78,138.76,7.2078]
[1745092064134,25.36,138.78,138.73,8.9411454]
[1745092065635,25.36,138.78,138.76,7.2076]
[1745092067937,8.9411454,138.82,138.75,8.9411454]
[1745092068234,25.36,138.83,138.79,8.9411454]
[1745092068642,32.5646,138.83,138.81,7.2053]
[1745092069340,25.36,138.83,138.79,8.9411454]
[1745092069736,32.5643,138.83,138.8,7.2056]
[1745092070237,25.36,138.83,138.8,7.2056]
[1745092071842,25.36,138.83,138.81,7.2052]
[1745092072537,7.2033,138.85,138.82,7.2045]
[1745092073239,7.2038,138.84,138.82,7.2045]
[1745092073739,7.2038,138.84,138.81,16.1463454]
[1745092077042,605.1011454,138.86,138.81,8.9411454]
[1745092077342,34.3011454,138.86,138.81,8.9411454]
[1745092077844,7.2033,138.85,138.83,7.2043]
[1745092078044,7.2033,138.85,138.81,8.9411454]
[1745092078343,7.2033,138.85,138.82,7.2046]
[1745092078544,7.2041,138.84,138.81,8.9411454]
[1745092079344,7.2041,138.84,138.81,16.1462454]
[1745092080546,7.2054,138.81,138.76,5.7319]
[1745092080745,34.2811454,138.82,138.76,12.7690454]
[1745092080936,8.9411454,138.8,138.74,34.2811454]
[1745092081144,25.34,138.79,138.75,7.2082]
[1745092081337,8.9411454,138.78,138.72,8.9411454]
[1745092081541,8.9411454,138.76,138.7,10.7923454]
[1745092081738,34.2811454,138.76,138.7,10.7923454]
[1745092082246,7.2094,138.74,138.71,7.2103]
[1745092082947,7.2099,138.73,138.7,18.0031454]
[1745092085146,7.2091,138.74,138.71,7.2105]
[1745092086448,7.2088,138.75,138.72,7.2097]
[1745092090149,7.209,138.74,138.72,7.2097]
[1745092091050,7.2087,138.75,138.72,7.2097]
[1745092095450,8.9411454,138.74,138.67,36.3108454]
[1745092095647,25.34,138.73,138.67,36.3108454]
[1745092096254,7.2103,138.72,138.69,7.2113]
[1745092096954,32.5498,138.73,138.7,7.2109]
[1745092099054,25.34,138.73,138.71,7.2104]
[1745092099253,25.34,138.77,138.71,8.9411454]
[1745092099453,25.34,138.77,138.73,8.9411454]
[1745092100254,7.2082,138.76,138.73,16.1503454]
[1745092106555,7.2082,138.76,138.74,7.2089]
[1745092107158,7.2082,138.76,138.73,16.1504454]
[1745092108959,7.2082,138.76,138.74,7.209]
[1745092109560,7.2082,138.76,138.73,16.1504454]
[1745092110358,8.9411454,138.74,138.68,8.9411454]
[1745092110563,8.9411454,138.72,138.67,27.3697]
[1745092110863,7.2108,138.71,138.67,7.2126]
[1745092111564,7.2108,138.71,138.68,7.2121]
[1745092112162,7.2111,138.7,138.68,7.2121]
[1745092112764,7.2106,138.71,138.68,7.2119]
[1745092121666,7.2106,138.71,138.68,7.212]
[1745092123272,34.2811454,138.72,138.67,8.9411454]
[1745092123472,25.34,138.73,138.69,8.9411454]
[1745092123871,7.21,138.72,138.69,8.9411454]
[1745092124574,32.5498,138.73,138.69,8.9411454]
[1745092124973,32.5498,138.73,138.7,7.2108]
[1745092125675,7.21,138.72,138.7,7.2108]
[1745092126674,7.2105,138.71,138.69,7.2115]
[1745092126972,7.2105,138.71,138.67,8.9411454]
[1745092127174,16.1514454,138.72,138.68,7.2116]
[1745092127674,16.1514454,138.72,138.68,7.2118]
[1745092129675,7.2106,138.71,138.68,7.2118]
[1745092131474,7.2111,138.7,138.67,7.2125]
[1745092131978,8.9411454,138.72,138.65,8.9411454]
[1745092132177,7.2108,138.71,138.68,7.2118]
[1745092132477,8.9411454,138.72,138.67,8.9411454]
[1745092132676,32.5497,138.73,138.69,8.9411454]
[1745092133682,32.5497,138.73,138.7,7.2108]
[1745092134577,32.5497,138.73,138.71,7.2105]
[1745092134780,25.34,138.73,138.71,16.1516454]
[1745092139381,25.34,138.73,138.72,7.21]
[1745092140488,32.5495,138.73,138.71,16.1515454]
[1745092140685,32.5495,138.73,138.71,7.2104]
[1745092142287,32.5495,138.73,138.69,8.9411454]
[1745092142288,25.34,138.73,138.72,7.21]
[1745092143490,32.5495,138.73,138.71,7.2103]
[1745092147793,32.5495,138.73,138.7,7.2108]
[1745092148093,32.5495,138.73,138.7,16.1519454]
[1745092149092,32.5495,138.73,138.71,7.2105]
[1745092153195,25.34,138.73,138.71,7.2105]
[1745092153395,25.34,138.73,138.72,7.21]
[1745092154697,25.34,138.73,138.71,7.2103]
[1745092155498,32.5495,138.73,138.71,7.2103]
[1745092155694,25.34,138.73,138.71,7.2103]
[1745092157399,7.2093,138.74,138.71,7.2103]
[1745092160000,7.2096,138.73,138.7,16.1519454]
[1745092160202,7.2096,138.73,138.7,8.9411454]
[1745092161302,7.2096,138.73,138.71,7.2104]
[1745092164506,7.2096,138.73,138.7,16.1519454]
[1745092170012,7.2096,138.73,138.71,7.2105]
[1745092170310,7.2096,138.73,138.7,8.9411454]
[1745092170511,7.21,138.72,138.69,7.2113]
[1745092170811,34.2811454,138.74,138.68,8.9411454]
[1745092171511,7.2108,138.71,138.68,16.1528454]
[1745092175113,7.2108,138.71,138.69,7.2115]
[1745092177415,7.2103,138.72,138.69,7.2115]
[1745092178711,7.2096,138.73,138.71,7.2105]
[1745092180418,7.2096,138.73,138.7,7.2108]
[1745092184430,7.2096,138.73,138.71,7.2105]
[1745092184616,25.34,138.74,138.7,8.9411454]
[1745092184913,25.34,138.74,138.71,7.2101]
[1745092185221,32.5491,138.74,138.71,7.2101]
[1745092191224,25.34,138.74,138.72,7.2096]
[1745092192223,32.5491,138.74,138.72,7.2096]
[1745092196033,7.2099,138.73,138.7,8.9411454]
[1745092196931,7.2099,138.73,138.71,7.2103]
[1745092199338,32.5492,138.74,138.71,7.2103]
[1745092200432,32.5492,138.74,138.72,7.21]
[1745092204542,7.2095,138.73,138.71,7.2105]
[1745092205345,32.5492,138.74,138.72,7.21]
[1745092208141,8.9411454,138.77,138.73,7.2092]
[1745092208344,25.34,138.77,138.74,8.9411454]
[1745092209048,25.34,138.77,138.75,7.2081]
[1745092210247,32.5477,138.77,138.74,16.1498454]
[1745092210846,16.1495454,138.76,138.73,7.2091]
[1745092211039,8.9411454,138.76,138.7,34.2811454]
[1745092211243,8.9411454,138.74,138.7,25.34]
[1745092211541,7.2098,138.73,138.7,7.2108]
[1745092213749,7.2101,138.72,138.7,7.2108]
[1745092216551,7.2101,138.72,138.69,7.2112]
[1745092216849,8.9411454,138.72,138.67,25.32]
[1745092217050,8.9411454,138.72,138.66,8.9411454]
[1745092218254,7.2108,138.71,138.68,7.2118]
[1745092222152,7.2103,138.72,138.69,7.2112]
[1745092222353,34.2611454,138.74,138.69,7.2112]
[1745092222555,34.2611454,138.74,138.68,8.9411454]
[1745092222755,7.2109,138.71,138.68,16.1529454]
[1745092223054,32.5509,138.71,138.68,16.1529454]
[1745092225253,7.2111,138.7,138.68,7.2118]